fUSD/lending_fUSD_20250104
["ID","MTS","AMOUNT","RATE_DAILY","PERIOD"]
[347625289,1735976316688,-711.32356314,0.00010988,2]
[347625290,1735976316711,-420.0,0.00010988,2]
[347625291,1735976316732,-784.39003955,0.00010988,2]
[347625292,1735976316754,-430.25029901,0.00010988,2]
[347625293,1735976316776,-9128.99145171,0.00010988,2]
[347625294,1735976316798,-8079.5282331,0.00010989,2]
[347625295,1735976316821,-784.39003955,0.00010989,2]
[347625296,1735976316842,-711.32356314,0.00010989,2]
[347625297,1735976316864,-28275.62023388,0.00010989,2]
[347625298,1735976316888,-4518.73504292,0.0001099,2]
[347625299,1735976316911,-8079.5282331,0.0001099,2]
[347625300,1735976316934,-2154.71475092,0.0001099,2]
[347625301,1735976316957,-1818.61164592,0.00010991,2]
[347625302,1735976316983,-16771.80635977,0.00010991,2]
[347625303,1735976317006,-16771.80635977,0.00010992,2]
[347625304,1735976317031,-8079.5282331,0.00010992,2]
[347625305,1735976317054,-4726.534841,0.00010993,2]
[347625306,1735976317077,-430.25029901,0.00010993,2]
[347625307,1735976317100,-784.39003955,0.00010994,2]
[347625308,1735976317123,-16771.80635977,0.00010994,2]
[347625309,1735976317147,-3556.61781573,0.00010994,2]
[347625310,1735976317173,-389564.69927951,0.00010994,2]
[347625311,1735976317199,-784.39003955,0.00010995,2]
[347625312,1735976317223,-28275.62023388,0.00010995,2]
[347625313,1735976317246,-219.6650596,0.00010995,2]
[347625314,1735976317269,-2154.71475092,0.00010996,2]
[347625315,1735976317294,-389564.69927951,0.00010997,2]
[347625316,1735976317316,-711.32356314,0.00010997,2]
[347625317,1735976317338,-219.6650596,0.00010997,2]
[347625318,1735976317360,-28275.62023388,0.00010997,2]
[347625319,1735976317384,-4726.534841,0.00010998,2]
[347625320,1735976317407,-4518.73504292,0.00010999,2]
[347625321,1735976317431,-3556.61781573,0.00010999,2]
[347625322,1735976317454,-219.6650596,0.00010999,2]
[347625323,1735976317477,-784.39003955,0.00010999,2]
[347625324,1735976317499,-1000.80940041,0.00011,2]
[347625325,1735976317522,-550.0,0.00011,2]
[347625326,1735976317544,-401955.48988677,0.00011,2]
[347625327,1735976317568,-500.0,0.00011084,2]
[347625328,1735976317591,-500.0,0.00011094,2]
[347625329,1735976317615,-500.0,0.00011094,2]
[347625330,1735976317637,-500.0,0.00011094,2]
[347625331,1735976317660,-500.0,0.00011094,2]
[347625332,1735976317683,-500.0,0.00011094,2]
[347625333,1735976317704,-500.0,0.00011094,2]
[347625334,1735976317726,-500.0,0.00011094,2]
[347625335,1735976317749,-500.0,0.00011094,2]
[347625336,1735976317772,-500.0,0.00011094,2]
[347625337,1735976317795,-500.0,0.00011094,2]
[347625338,1735976317817,-500.0,0.00011094,2]
[347625339,1735976317840,-500.0,0.00011094,2]
[347625340,1735976317863,-902.87,0.00011094,2]
[347625341,1735976317886,-699.79,0.00011094,2]
[347625342,1735976317909,-1350.28,0.00011094,2]
[347625343,1735976317935,-4928.74,0.00011094,2]
[347625344,1735976317957,-500.0,0.00011094,2]
[347625345,1735976317984,-500.0,0.00011094,2]
[347625346,1735976318007,-500.0,0.00011094,2]
[347625347,1735976318033,-500.0,0.00011094,2]
[347625348,1735976318056,-500.0,0.00011094,2]
[347625349,1735976318079,-500.0,0.00011094,2]
[347625350,1735976318102,-500.0,0.00011094,2]
[347625351,1735976318125,-500.0,0.00011094,2]
[347625352,1735976318149,-500.0,0.00011094,2]
[347625353,1735976318175,-1240.21,0.00011094,2]
[347625354,1735976318202,-500.0,0.00011094,2]
[347625355,1735976318226,-866.38,0.00011094,2]
[347625356,1735976318249,-500.0,0.00011094,2]
[347625357,1735976318273,-500.0,0.00011094,2]
[347625358,1735976318298,-1845.65,0.00011094,2]
[347625359,1735976318322,-3117.95,0.00011094,2]
[347625360,1735976318347,-500.0,0.00011094,2]
[347625361,1735976318371,-550.57871908,0.00011094,2]
[347625362,1735976318401,-204.66083175,0.00011094,2]
[347625363,1735976318425,-500.0,0.00011094,2]
[347625364,1735976318451,-500.0,0.00011094,2]
[347625365,1735976318475,-500.0,0.00011094,2]
[347625366,1735976318499,-500.0,0.00011094,2]
[347625367,1735976318524,-520.5130913,0.00011094,2]
[347625368,1735976318549,-500.0,0.00011094,2]
[347625369,1735976318574,-500.0,0.00011094,2]
[347625370,1735976318599,-500.0,0.00011094,2]
[347625371,1735976318624,-500.0,0.00011094,2]
[347625372,1735976318649,-500.0,0.00011094,2]
[347625373,1735976318674,-1260.56,0.00011094,2]
[347625374,1735976318698,-500.0,0.00011094,2]
[347625375,1735976318721,-214.07979797,0.00011094,2]
[347625376,1735976318744,-500.0,0.00011094,2]
[347625377,1735976318769,-500.0,0.00011094,2]
[347625378,1735976318792,-500.0,0.00011094,2]
[347625379,1735976318815,-500.0,0.00011094,2]
[347625380,1735976318839,-500.0,0.00011094,2]
[347625381,1735976318863,-500.0,0.00011094,2]
[347625382,1735976318886,-500.0,0.00011094,2]
[347625383,1735976318909,-500.0,0.00011094,2]
[347625384,1735976318932,-500.0,0.00011094,2]
[347625385,1735976318955,-906.53,0.00011094,2]
[347625386,1735976318981,-500.0,0.00011094,2]
[347625387,1735976319004,-500.0,0.00011094,2]
[347625388,1735976319028,-343.21064795,0.00011094,2]
[347625389,1735976319053,-500.0,0.00011094,2]
[347625390,1735976319077,-500.0,0.00011094,2]
[347625391,1735976319101,-500.0,0.00011094,2]
[347625392,1735976319125,-500.0,0.00011094,2]
[347625393,1735976319150,-1351.4,0.00011094,2]
[347625394,1735976319174,-500.0,0.00011094,2]
[347625395,1735976319200,-567.77,0.00011094,2]
[347625396,1735976319225,-500.0,0.00011094,2]
[347625397,1735976319250,-500.0,0.00011094,2]
[347625398,1735976319276,-500.0,0.00011094,2]
[347625399,1735976319300,-500.0,0.00011094,2]
[347625400,1735976319323,-500.0,0.00011094,2]
[347625401,1735976319346,-500.0,0.00011094,2]
[347625402,1735976319370,-504.41,0.00011094,2]
[347625403,1735976319394,-641.79,0.00011094,2]
[347625404,1735976319418,-784.36,0.00011094,2]
[347625405,1735976319443,-739.75,0.00011094,2]
[347625406,1735976319467,-1162.51,0.00011094,2]
[347625407,1735976319491,-542.64,0.00011094,2]
[347625408,1735976319514,-500.0,0.00011094,2]
[347625409,1735976319538,-617.01713517,0.00011094,2]
[347625410,1735976319561,-505.9,0.00011094,2]
[347625411,1735976319585,-770.35,0.00011094,2]
[347625412,1735976319611,-1242.92,0.00011094,2]
[347625413,1735976319637,-500.0,0.00011094,2]
[347625414,1735976319662,-500.0,0.00011094,2]
[347625415,1735976319686,-1328.94,0.00011094,2]
[347625416,1735976319711,-566.95,0.00011094,2]
[347625417,1735976319735,-1428.97,0.00011094,2]
[347625418,1735976319762,-4610.12,0.00011094,2]
[347625419,1735976319786,-862.53,0.00011094,2]
[347625420,1735976319812,-645.25586502,0.00011094,2]
[347625421,1735976319838,-500.0,0.00011094,2]
[347625422,1735976319864,-650.48,0.00011094,2]
[347625423,1735976319889,-500.0,0.00011094,2]
[347625424,1735976319915,-1691.0,0.00011094,2]
[347625425,1735976319942,-500.0,0.00011094,2]
[347625426,1735976319965,-500.0,0.00011094,2]
[347625427,1735976319994,-500.0,0.00011094,2]
[347625428,1735976320019,-1312.2,0.00011094,2]
[347625429,1735976320044,-790.04,0.00011094,2]
[347625430,1735976320067,-500.0,0.00011094,2]
[347625431,1735976320090,-2508.25,0.00011094,2]
[347625432,1735976320114,-500.0,0.00011094,2]
[347625433,1735976320138,-628.24,0.00011094,2]
[347625434,1735976320162,-919.25,0.00011094,2]
[347625435,1735976320186,-512.71,0.00011094,2]
[347625436,1735976320211,-500.0,0.00011095,2]
[347625437,1735976320235,-500.0,0.00011095,2]
[347625438,1735976320260,-1579.39,0.00011095,2]
[347625439,1735976320286,-500.0,0.00011095,2]
[347625440,1735976320311,-500.0,0.00011095,2]
[347625441,1735976320494,-500.0,0.00011095,2]
[347625442,1735976320535,-500.0,0.00011095,2]
[347625443,1735976320561,-500.0,0.00011095,2]
[347625444,1735976320586,-500.0,0.00011095,2]
[347625445,1735976320611,-500.0,0.00011095,2]
[347625446,1735976320635,-518.51,0.00011095,2]
[347625447,1735976320658,-500.0,0.00011095,2]
[347625448,1735976320680,-500.0,0.00011221,2]
[347625449,1735976320706,-3531.04721759,0.0001125,2]
[347625450,1735976320730,-312.0,0.00011325,2]
[347625451,1735976320752,-500.0,0.0001135,2]
[347625452,1735976320775,-700.0,0.0001135,2]
[347625453,1735976320798,-451.62693459,0.00011358,2]
[347625454,1735976320820,-500.0,0.00011368,2]
[347625455,1735976320842,-500.0,0.00011368,2]
[347625456,1735976320865,-500.0,0.00011368,2]
[347625457,1735976320887,-500.0,0.00011368,2]
[347625458,1735976320909,-500.0,0.00011368,2]
[347625459,1735976320932,-268.59722998,0.00011368,2]
[347625460,1735976320957,-500.0,0.00011368,2]
[347625461,1735976320990,-500.0,0.00011368,2]
[347625462,1735976321012,-500.0,0.00011368,2]
[347625463,1735976321037,-500.0,0.00011368,2]
[347625464,1735976321062,-500.0,0.00011368,2]
[347625465,1735976321089,-500.0,0.00011368,2]
[347625466,1735976321114,-902.87,0.00011368,2]
[347625467,1735976321140,-699.79,0.00011368,2]
[347625468,1735976321164,-1350.28,0.00011368,2]
[347625469,1735976321190,-4928.74,0.00011368,2]
[347625470,1735976321213,-405.3475805,0.00011368,2]
[347625471,1735976321240,-500.0,0.00011368,2]
[347625472,1735976321264,-500.0,0.00011368,2]
[347625473,1735976321288,-500.0,0.00011368,2]
[347625474,1735976321310,-500.0,0.00011368,2]
[347625475,1735976321333,-500.0,0.00011368,2]
[347625476,1735976321357,-500.0,0.00011368,2]
[347625477,1735976321380,-500.0,0.00011368,2]
[347625478,1735976321403,-500.0,0.00011368,2]
[347625479,1735976321425,-1240.21,0.00011368,2]
[347625480,1735976321449,-500.0,0.00011368,2]
[347625481,1735976321474,-866.38,0.00011368,2]
[347625482,1735976321498,-500.0,0.00011368,2]
[347625483,1735976321522,-333.13938663,0.00011368,2]
[347625484,1735976321546,-1845.65,0.00011368,2]
[347625485,1735976321572,-3117.95,0.00011368,2]
[347625486,1735976321597,-500.0,0.00011368,2]
[347625487,1735976321622,-568.10828811,0.00011368,2]
[347625488,1735976321646,-500.0,0.00011368,2]
[347625489,1735976321670,-500.0,0.00011368,2]
[347625490,1735976321694,-394.82,0.00011368,2]
[347625491,1735976321719,-500.0,0.00011368,2]
[347625492,1735976321741,-500.0,0.00011368,2]
[347625493,1735976321763,-500.0,0.00011368,2]
[347625494,1735976321785,-500.0,0.00011368,2]
[347625495,1735976321807,-500.0,0.00011368,2]
[347625496,1735976321830,-1260.56,0.00011368,2]
[347625497,1735976321852,-500.0,0.00011368,2]
[347625498,1735976321875,-500.0,0.00011368,2]
[347625499,1735976321897,-500.0,0.00011368,2]
[347625500,1735976321921,-500.0,0.00011368,2]
[347625501,1735976321944,-500.0,0.00011368,2]
[347625502,1735976321971,-500.0,0.00011368,2]
[347625503,1735976321994,-500.0,0.00011368,2]
[347625504,1735976322017,-500.0,0.00011368,2]
[347625505,1735976322039,-500.0,0.00011368,2]
[347625506,1735976322064,-500.0,0.00011368,2]
[347625507,1735976322088,-906.53,0.00011368,2]
[347625508,1735976322112,-500.0,0.00011368,2]
[347625509,1735976322136,-500.0,0.00011368,2]
[347625510,1735976322159,-500.0,0.00011368,2]
[347625511,1735976322184,-500.0,0.00011368,2]
[347625512,1735976322206,-500.0,0.00011368,2]
[347625513,1735976322230,-500.0,0.00011368,2]
[347625514,1735976322253,-1351.4,0.00011368,2]
[347625515,1735976322275,-500.0,0.00011368,2]
[347625516,1735976322298,-567.77,0.00011368,2]
[347625517,1735976322320,-500.0,0.00011368,2]
[347625518,1735976322343,-500.0,0.00011368,2]
[347625519,1735976322366,-500.0,0.00011368,2]
[347625520,1735976322388,-500.0,0.00011368,2]
[347625521,1735976322410,-500.0,0.00011368,2]
[347625522,1735976322433,-483.59403247,0.00011368,2]
[347625523,1735976322457,-504.41,0.00011368,2]
[347625524,1735976322480,-641.79,0.00011368,2]
[347625525,1735976322502,-784.36,0.00011368,2]
[347625526,1735976322525,-739.75,0.00011368,2]
[347625527,1735976322547,-1162.51,0.00011368,2]
[347625528,1735976322572,-333.09904865,0.00011368,2]
[347625529,1735976322596,-542.64,0.00011368,2]
[347625530,1735976322620,-505.9,0.00011368,2]
[347625531,1735976322652,-770.35,0.00011368,2]
[347625532,1735976322683,-1242.92,0.00011368,2]
[347625533,1735976322708,-500.0,0.00011368,2]
[347625534,1735976322737,-500.0,0.00011368,2]
[347625535,1735976322765,-1328.94,0.00011368,2]
[347625536,1735976322796,-566.95,0.00011368,2]
[347625537,1735976322825,-1428.97,0.00011368,2]
[347625538,1735976322852,-4610.12,0.00011368,2]
[347625539,1735976322878,-862.53,0.00011368,2]
[347625540,1735976322912,-500.0,0.00011368,2]
[347625541,1735976322941,-650.48,0.00011368,2]
[347625542,1735976322971,-500.0,0.00011368,2]
[347625543,1735976323000,-1691.0,0.00011368,2]
[347625544,1735976323039,-500.0,0.00011368,2]
[347625545,1735976323084,-527.85547908,0.00011368,2]
[347625546,1735976323116,-500.0,0.00011368,2]
[347625547,1735976323150,-1312.2,0.00011368,2]
[347625548,1735976323183,-790.04,0.00011368,2]
[347625549,1735976323213,-649.38,0.00011368,2]
[347625550,1735976323245,-2508.25,0.00011368,2]
[347625551,1735976323275,-500.0,0.00011368,2]
[347625552,1735976323308,-628.24,0.00011368,2]
[347625553,1735976323341,-919.25,0.00011368,2]
[347625554,1735976323371,-512.71,0.00011368,2]
[347625555,1735976323397,-500.0,0.00011369,2]
[347625556,1735976323425,-500.0,0.00011369,2]
[347625557,1735976323462,-1579.39,0.00011369,2]
[347625558,1735976323492,-500.0,0.00011369,2]
[347625559,1735976323519,-500.0,0.00011369,2]
[347625560,1735976323547,-500.0,0.00011369,2]
[347625561,1735976323588,-500.0,0.00011369,2]
[347625562,1735976323619,-500.0,0.00011369,2]
[347625563,1735976323648,-500.0,0.00011369,2]
[347625564,1735976323679,-500.0,0.00011369,2]
[347625565,1735976323711,-518.51,0.00011369,2]
[347625566,1735976323742,-500.0,0.00011369,2]
[347625567,1735976323772,-10560.0,0.00011463,7]
[347625568,1735976323803,-241.21966834,0.00011499,5]
[347625569,1735976323832,-740.0,0.000115,3]
[347625570,1735976323864,-170.50950943,0.00011542,2]
[347625571,1735976323895,-1000.0,0.00011616,2]
[347625572,1735976323926,-393.22,0.00011624,2]
[347625573,1735976323955,-626.92,0.00011626,2]
[347625574,1735976323988,-500.0,0.00011642,2]
[347625575,1735976324018,-500.0,0.00011642,2]
[347625576,1735976324047,-500.0,0.00011642,2]
[347625577,1735976324077,-500.0,0.00011642,2]
[347625578,1735976324105,-500.0,0.00011642,2]
[347625579,1735976324133,-500.0,0.00011642,2]
[347625580,1735976324161,-500.0,0.00011642,2]
[347625581,1735976324188,-500.0,0.00011642,2]
[347625582,1735976324214,-217.72721489,0.00011642,2]
[347625583,1735976324241,-500.0,0.00011642,2]
[347625584,1735976324267,-405.44327887,0.00011642,2]
[347625585,1735976324293,-902.87,0.00011642,2]
[347625586,1735976324319,-699.79,0.00011642,2]
[347625587,1735976324346,-1350.28,0.00011642,2]
[347625588,1735976324374,-4928.74,0.00011642,2]
[347625589,1735976324401,-500.0,0.00011642,2]
[347625590,1735976324427,-500.0,0.00011642,2]
[347625591,1735976324454,-500.0,0.00011642,2]
[347625592,1735976324483,-500.0,0.00011642,2]
[347625593,1735976324510,-500.0,0.00011642,2]
[347625594,1735976324539,-500.0,0.00011642,2]
[347625595,1735976324566,-500.0,0.00011642,2]
[347625596,1735976324592,-500.0,0.00011642,2]
[347625597,1735976324619,-1240.21,0.00011642,2]
[347625598,1735976324646,-500.0,0.00011642,2]
[347625599,1735976324674,-866.38,0.00011642,2]
[347625600,1735976324701,-154.43879925,0.00011642,2]
[347625601,1735976324728,-1845.65,0.00011642,2]
[347625602,1735976324755,-3117.95,0.00011642,2]
[347625603,1735976324783,-500.0,0.00011642,2]
[347625604,1735976324812,-500.0,0.00011642,2]
[347625605,1735976324838,-500.0,0.00011642,2]
[347625606,1735976324864,-500.0,0.00011642,2]
[347625607,1735976324891,-500.0,0.00011642,2]
[347625608,1735976324918,-500.0,0.00011642,2]
[347625609,1735976324945,-500.0,0.00011642,2]
[347625610,1735976324974,-500.0,0.00011642,2]
[347625611,1735976325003,-1260.56,0.00011642,2]
[347625612,1735976325031,-500.0,0.00011642,2]
[347625613,1735976325057,-500.0,0.00011642,2]
[347625614,1735976325083,-500.0,0.00011642,2]
[347625615,1735976325108,-564.90001379,0.00011642,2]
[347625616,1735976325134,-500.0,0.00011642,2]
[347625617,1735976325407,-500.0,0.00011642,2]
[347625618,1735976325431,-500.0,0.00011642,2]
[347625619,1735976325455,-500.0,0.00011642,2]
[347625620,1735976325477,-290.59072468,0.00011642,2]
[347625621,1735976325500,-500.0,0.00011642,2]
[347625622,1735976325523,-500.0,0.00011642,2]
[347625623,1735976325546,-906.53,0.00011642,2]
[347625624,1735976325570,-500.0,0.00011642,2]
[347625625,1735976325593,-500.0,0.00011642,2]
[347625626,1735976325618,-500.0,0.00011642,2]
[347625627,1735976325642,-500.0,0.00011642,2]
[347625628,1735976325666,-500.0,0.00011642,2]
[347625629,1735976325690,-1351.4,0.00011642,2]
[347625630,1735976325713,-500.0,0.00011642,2]
[347625631,1735976325736,-567.77,0.00011642,2]
[347625632,1735976325759,-500.0,0.00011642,2]
[347625633,1735976325782,-500.0,0.00011642,2]
[347625634,1735976325805,-500.0,0.00011642,2]
[347625635,1735976325829,-500.0,0.00011642,2]
[347625636,1735976325852,-500.0,0.00011642,2]
[347625637,1735976325876,-504.41,0.00011642,2]
[347625638,1735976325899,-641.79,0.00011642,2]
[347625639,1735976325923,-784.36,0.00011642,2]
[347625640,1735976325948,-739.75,0.00011642,2]
[347625641,1735976325974,-1162.51,0.00011642,2]
[347625642,1735976326000,-542.64,0.00011642,2]
[347625643,1735976326024,-505.9,0.00011642,2]
[347625644,1735976326052,-770.35,0.00011642,2]
[347625645,1735976326076,-1242.92,0.00011642,2]
[347625646,1735976326099,-470.76900501,0.00011642,2]
[347625647,1735976326123,-500.0,0.00011642,2]
[347625648,1735976326145,-1328.94,0.00011642,2]
[347625649,1735976326169,-566.95,0.00011642,2]
[347625650,1735976326192,-1428.97,0.00011642,2]
[347625651,1735976326216,-4610.12,0.00011642,2]
[347625652,1735976326244,-862.53,0.00011642,2]
[347625653,1735976326268,-500.0,0.00011642,2]
[347625654,1735976326293,-650.48,0.00011642,2]
[347625655,1735976326317,-500.0,0.00011642,2]
[347625656,1735976326341,-1691.0,0.00011642,2]
[347625657,1735976326364,-500.0,0.00011642,2]
[347625658,1735976326387,-500.0,0.00011642,2]
[347625659,1735976326412,-1312.2,0.00011642,2]
[347625660,1735976326435,-790.04,0.00011642,2]
[347625661,1735976326461,-2508.25,0.00011642,2]
[347625662,1735976326485,-500.0,0.00011642,2]
[347625663,1735976326510,-628.24,0.00011642,2]
[347625664,1735976326535,-919.25,0.00011642,2]
[347625665,1735976326561,-512.71,0.00011642,2]
[347625666,1735976326591,-500.0,0.00011643,2]
[347625667,1735976326622,-500.0,0.00011643,2]
[347625668,1735976326647,-1579.39,0.00011643,2]
[347625669,1735976326672,-500.0,0.00011643,2]
[347625670,1735976326696,-500.0,0.00011643,2]
[347625671,1735976326722,-500.0,0.00011643,2]
[347625672,1735976326746,-500.0,0.00011643,2]
[347625673,1735976326770,-232.30507669,0.00011643,2]
[347625674,1735976326794,-500.0,0.00011643,2]
[347625675,1735976326818,-518.51,0.00011643,2]
[347625676,1735976326841,-500.0,0.00011643,2]
[347625677,1735976326864,-210.0,0.00011699,2]
[347625678,1735976326886,-200.0,0.000118,2]
[347625679,1735976326909,-608.26,0.000118,7]
[347625680,1735976326932,-184.791103,0.00011884,2]
[347625681,1735976326956,-5559.0,0.000119,5]
[347625682,1735976326982,-500.0,0.00011916,2]
[347625683,1735976327006,-500.0,0.00011916,2]
[347625684,1735976327030,-500.0,0.00011916,2]
[347625685,1735976327055,-500.0,0.00011916,2]
[347625686,1735976327078,-361.17516839,0.00011916,2]
[347625687,1735976327100,-500.0,0.00011916,2]
[347625688,1735976327124,-500.0,0.00011916,2]
[347625689,1735976327148,-629.02576122,0.00011916,2]
[347625690,1735976327172,-500.0,0.00011916,2]
[347625691,1735976327196,-902.87,0.00011916,2]
[347625692,1735976327219,-699.79,0.00011916,2]
[347625693,1735976327242,-1350.28,0.00011916,2]
[347625694,1735976327266,-4928.74,0.00011916,2]
[347625695,1735976327289,-500.0,0.00011916,2]
[347625696,1735976327312,-500.0,0.00011916,2]
[347625697,1735976327336,-500.0,0.00011916,2]
[347625698,1735976327359,-500.0,0.00011916,2]
[347625699,1735976327383,-500.0,0.00011916,2]
[347625700,1735976327408,-500.0,0.00011916,2]
[347625701,1735976327431,-500.0,0.00011916,2]
[347625702,1735976327469,-500.0,0.00011916,2]
[347625703,1735976327495,-500.0,0.00011916,2]
[347625704,1735976327521,-1240.21,0.00011916,2]
[347625705,1735976327544,-866.38,0.00011916,2]
[347625706,1735976327569,-1845.65,0.00011916,2]
[347625707,1735976327595,-3117.95,0.00011916,2]
[347625708,1735976327618,-500.0,0.00011916,2]
[347625709,1735976327643,-500.0,0.00011916,2]
[347625710,1735976327667,-500.0,0.00011916,2]
[347625711,1735976327693,-500.0,0.00011916,2]
[347625712,1735976327718,-500.0,0.00011916,2]
[347625713,1735976327741,-500.0,0.00011916,2]
[347625714,1735976327765,-500.0,0.00011916,2]
[347625715,1735976327789,-500.0,0.00011916,2]
[347625716,1735976327814,-500.0,0.00011916,2]
[347625717,1735976327838,-1260.56,0.00011916,2]
[347625718,1735976327862,-208.59142403,0.00011916,2]
[347625719,1735976327886,-500.0,0.00011916,2]
[347625720,1735976327909,-500.0,0.00011916,2]
[347625721,1735976327933,-500.0,0.00011916,2]
[347625722,1735976327957,-500.0,0.00011916,2]
[347625723,1735976327985,-500.0,0.00011916,2]
[347625724,1735976328008,-500.0,0.00011916,2]
[347625725,1735976328032,-500.0,0.00011916,2]
[347625726,1735976328063,-906.53,0.00011916,2]
[347625727,1735976328088,-500.0,0.00011916,2]
[347625728,1735976328114,-500.0,0.00011916,2]
[347625729,1735976328144,-500.0,0.00011916,2]
[347625730,1735976328171,-500.0,0.00011916,2]
[347625731,1735976328198,-500.0,0.00011916,2]
[347625732,1735976328225,-1351.4,0.00011916,2]
[347625733,1735976328250,-500.0,0.00011916,2]
[347625734,1735976328278,-567.77,0.00011916,2]
[347625735,1735976328304,-500.0,0.00011916,2]
[347625736,1735976328330,-500.0,0.00011916,2]
[347625737,1735976328357,-500.0,0.00011916,2]
[347625738,1735976328384,-500.0,0.00011916,2]
[347625739,1735976328410,-500.0,0.00011916,2]
[347625740,1735976328436,-504.41,0.00011916,2]
[347625741,1735976328462,-641.79,0.00011916,2]
[347625742,1735976328488,-784.36,0.00011916,2]
[347625743,1735976328515,-739.75,0.00011916,2]
[347625744,1735976328541,-1162.51,0.00011916,2]
[347625745,1735976328790,-542.64,0.00011916,2]
[347625746,1735976328814,-505.9,0.00011916,2]
[347625747,1735976328838,-770.35,0.00011916,2]
[347625748,1735976328862,-1242.92,0.00011916,2]
[347625749,1735976328886,-500.0,0.00011916,2]
[347625750,1735976328909,-1328.94,0.00011916,2]
[347625751,1735976328933,-566.95,0.00011916,2]
[347625752,1735976328958,-1428.97,0.00011916,2]
[347625753,1735976328984,-4610.12,0.00011916,2]
[347625754,1735976329010,-862.53,0.00011916,2]
[347625755,1735976329034,-500.0,0.00011916,2]
[347625756,1735976329057,-500.0,0.00011916,2]
[347625757,1735976329081,-650.48,0.00011916,2]
[347625758,1735976329105,-1691.0,0.00011916,2]
[347625759,1735976329129,-500.0,0.00011916,2]
[347625760,1735976329152,-248.56286602,0.00011916,2]
[347625761,1735976329176,-1312.2,0.00011916,2]
[347625762,1735976329200,-790.04,0.00011916,2]
[347625763,1735976329223,-2508.25,0.00011916,2]
[347625764,1735976329247,-500.0,0.00011916,2]
[347625765,1735976329270,-628.24,0.00011916,2]
[347625766,1735976329294,-919.25,0.00011916,2]
[347625767,1735976329317,-500.0,0.00011917,2]
[347625768,1735976329342,-500.0,0.00011917,2]
[347625769,1735976329366,-1579.39,0.00011917,2]
[347625770,1735976329391,-500.0,0.00011917,2]
[347625771,1735976329416,-500.0,0.00011917,2]
[347625772,1735976329442,-500.0,0.00011917,2]
[347625773,1735976329468,-500.0,0.00011917,2]
[347625774,1735976329495,-500.0,0.00011917,2]
[347625775,1735976329524,-518.51,0.00011917,2]
[347625776,1735976329550,-500.0,0.00011917,2]
[347625777,1735976329574,-28096.2186,0.00012,4]
[347625778,1735976329598,-5009.61329264,0.00012,2]
[347625779,1735976329622,-5000.0,0.00012,3]
[347625780,1735976329647,-5000.0,0.00012,3]
[347625781,1735976329671,-5000.0,0.00012,3]
[347625782,1735976329697,-5000.0,0.00012,3]
[347625783,1735976329722,-5000.0,0.00012,3]
[347625784,1735976329745,-5000.0,0.00012,3]
[347625785,1735976329768,-2000.0,0.00012,3]
[347625786,1735976329791,-282340.07902189,0.0001204,2]
[347625787,1735976329814,-36788.79368625,0.00012111,2]
[347625788,1735976329838,-500.0,0.0001219,2]